Cogmind - Beta 10 X2 @@@ ROGUE MODE // 2020.06.22 @ 16:45:05 Player: Decinym Result: Destroyed by S-27 Virus with Autogun Performance ------------- Evolutions (5) 2500 Regions Visited (18) 3600 Robots Destroyed (276) 1380 Value Destroyed (12852) 12852 Prototype IDs (6) 120 Alien Tech Used (0) 0 Bonus (6448) 6448 TOTAL SCORE: 26900 Bonus ------- High Alert Combat Kills 2419 Follower Combat Kills 1679 Entered Garrisons 1000 Used RIF Installer 2500 Friendly Fire -1150 Cogmind --------- Core Integrity 0/1000 Matter 177/300 Energy 100/100 System Corruption 29% Temperature Cool (0) Movement Core (100) Ox1 Location -5/Extension Parts ------- > --- POWER (2) -------- (None) > --- PROPULSION (3) --- (None) > --- UTILITY (9) ------ System Shield Relay Coupler [Sentry] (31) Relay Coupler [Demolisher] (31) Relay Coupler [Hunter] (25) > --- WEAPON (3) ------- Improved Heavy Machine Gun > --- INVENTORY (4) ---- Improved Cooling System Lance Peak State ------------ > --- POWER ------------ Micro Fission Core Light Antimatter Reactor > --- PROPULSION ------- Carbon-fiber Leg Armored Leg Centrium Wheel > --- UTILITY ---------- Large Storage Unit Large Storage Unit Large Storage Unit Enhanced Optical Array Relay Coupler [NC] Relay Coupler [Swarmer] Relay Coupler [Brawler] Relay Coupler [Sentry] Relay Coupler [Hunter] > --- WEAPON ----------- Improved Heavy Machine Gun Improved Heavy Machine Gun Improved Remote Datajack > --- INVENTORY -------- Improved Ion Engine Carbon-fiber Leg Flexi-carbon Leg Flexi-carbon Leg Improved Cooling System Advanced Cooling System Improved Weapon Cycler Relay Coupler [NC] Relay Coupler [Sentry] Relay Coupler [Demolisher] Relay Coupler [Hunter] Relay Coupler [Behemoth] Plasma Rifle Proton Cannon Long-range Proton Cannon Long-range Proton Cannon Advanced Plasma Cannon KE Penetrator Precision Rocket Launcher Remote Datajack Ripper [Rating: 79] Favorites ----------- Power Improved Deuterium Engine Engine Improved Deuterium Engine Power Core Nuclear Core Reactor Light Antimatter Reactor Propulsion Armored Wheel Treads Medium Treads Leg Carbon-fiber Leg Wheel Armored Wheel Hover Unit Cooled Aerolev Unit Flight Unit Nuclear Pulse Thruster Utility Large Storage Unit Device Improved Heat Sink Storage Large Storage Unit Processor Advanced Signal Interpreter Hackware Relay Coupler [Sentry] Protection Improved Heavy Armor Plating Weapon Railgun Energy Gun Heavy EM Shotgun Energy Cannon Heavy Ion Cannon Ballistic Gun Railgun Ballistic Cannon Heavy Flak Cannon Launcher Precision Rocket Launcher Special Weapon Remote Datajack Slashing Weapon Ripper Piercing Weapon Lance Build | -11 -10 -10 -10 -9 -8 -8 -7 -7 -7 -7 -6 -6 -6 -6 -5 -5 -5 -5 ------- Run | Scr Mat Min Exi Min Mat Gar Fac Gar Fac Gar Fac Gar Fac Gar Fac Was Fac Ext Slots Evolved 10 | . . . . . 4 . 2 . . . 2 . . . 2 . . . Power 1 | . . . . . . . . . . . . . . . 1 . . . Propulsion 1 | . . . . . 1 . . . . . . . . . . . . . Utility 7 | . . . . . 3 . 1 . . . 2 . . . 1 . . . Weapon 1 | . . . . . . . 1 . . . . . . . . . . . Parts Attached 294 | . 1 12 1 4 26 16 21 24 14 13 9 37 24 31 46 5 8 2 Power 28 | . . 4 . . 3 . 1 2 3 2 . 2 2 3 5 1 . . Engine 20 | . . 2 . . 1 . 1 2 2 2 . 2 2 2 3 1 . . Core 7 | . . 2 . . 2 . . . 1 . . . . 1 1 . . . Reactor 1 | . . . . . . . . . . . . . . . 1 . . . Propulsion 53 | . . 4 . 1 7 1 6 5 3 . 2 8 3 4 5 2 1 1 Treads 5 | . . . . . 4 1 . . . . . . . . . . . . Leg 21 | . . 2 . . 2 . 3 1 . . . 3 . 3 4 2 . 1 Wheel 25 | . . 2 . 1 1 . 3 4 3 . 1 5 3 1 1 . . . Hover 1 | . . . . . . . . . . . 1 . . . . . . . Flight 1 | . . . . . . . . . . . . . . . . . 1 . Utility 95 | . . 1 1 2 8 5 5 12 . 6 3 15 9 7 14 1 6 . Device 17 | . . . . 1 1 . 2 5 . 1 . 2 . 1 3 1 . . Storage 12 | . . . 1 . 4 . 1 3 . . . . . . 3 . . . Processor 3 | . . . . . . 1 . . . . . . 1 . 1 . . . Hackware 44 | . . . . . . . 1 1 . 3 3 10 7 6 7 . 6 . Protection 19 | . . 1 . 1 3 4 1 3 . 2 . 3 1 . . . . . Artifact . | . . . . . . . . . . . . . . . . . . . Weapon 118 | . 1 3 . 1 8 10 9 5 8 5 4 12 10 17 22 1 1 1 Energy Gun 28 | . . 1 . . 5 4 4 2 4 . . 4 . 3 1 . . . Energy Cannon 25 | . . . . . . . 3 2 4 . 4 1 1 2 8 . . . Ballistic Gun 33 | . 1 2 . 1 1 3 1 . . 1 . 4 6 8 4 . . 1 Ballistic Cannon 2 | . . . . . . . . . . 2 . . . . . . . . Launcher 10 | . . . . . 1 3 . . . . . . 1 1 4 . . . Special Weapon 13 | . . . . . . . . . . 1 . 1 2 3 5 1 . . Impact Weapon . | . . . . . . . . . . . . . . . . . . . Slashing Weapon 6 | . . . . . 1 . 1 1 . 1 . 2 . . . . . . Piercing Weapon 1 | . . . . . . . . . . . . . . . . . 1 . Special Melee Weapon . | . . . . . . . . . . . . . . . . . . . Unidentified Prototypes 4 | . . . . . 2 . . . . . 1 . 1 . . . . . Parts Lost 87 | . . 7 . 1 1 6 8 8 2 6 . 5 3 8 18 4 8 2 Power 14 | . . 2 . . 1 . 1 1 . 1 . 1 . 2 4 1 . . Propulsion 21 | . . 3 . . . 2 3 1 . . . 1 1 1 4 1 3 1 Utility 18 | . . . . . . . 2 2 . 2 . . 1 1 3 2 4 1 Weapon 34 | . . 2 . 1 . 4 2 4 2 3 . 3 1 4 7 . 1 . Highest Loss Streak 8 | . . 3 . 1 1 2 3 4 2 6 . 2 2 3 8 4 6 1 Average Slot Usage (%) 89 | . 85 94 100 88 96 98 90 84 90 83 82 90 92 89 93 70 48 30 Engine 3 | . 14 1 . . . . 2 6 2 7 6 6 6 3 4 2 . . Core 3 | . . 10 14 14 8 9 4 . 4 . . . . 2 1 5 1 . Treads 4 | . . . . . 23 26 4 . . . . . . . . . . . Leg 5 | . 28 9 28 16 . . 13 . . . . 1 . 11 15 13 9 2 Wheel 9 | . . 17 . 6 . . 1 15 22 15 13 14 19 8 . . . . Device 4 | . . . . 1 9 4 2 6 7 2 . 5 1 3 3 5 4 . Storage 19 | . 14 14 14 14 18 18 20 23 23 23 20 20 20 20 17 11 1 . Processor 2 | . . . . . . 4 7 1 . . . . 1 6 3 2 . . Hackware 8 | . . . . . . . 6 . . 2 12 17 16 11 24 14 28 23 Protection 7 | . . 12 14 12 18 18 4 7 7 8 10 4 6 2 . . . . Energy Gun 5 | . 5 3 14 10 13 12 5 11 9 . . 2 . 1 . 5 1 . Energy Cannon 2 | . . . . . . . 4 6 6 3 7 4 . . 6 2 . . Ballistic Gun 6 | . 22 23 14 14 3 5 8 . . . . 5 14 12 5 . . 3 Special Weapon 1 | . . . . . . . . . . 4 6 5 3 2 2 2 . . Naked Turns . | . . . . . . . . . . . . . . . . . . . Heaviest Build 110 | 10 10 15 18 38 63 64 80 92 95 96 99 101 104 104 110 79 27 4 Greatest Support 84 | 20 20 26 20 28 84 84 56 44 40 40 40 46 44 51 51 50 35 3 Greatest Overweight (x) 6 | . . 2 . 1 3 1 2 2 2 2 3 6 3 5 5 4 1 1 Average Overweight (x) 1 | . . . . . . . 1 1 2 2 1 2 2 1 1 . . . Largest Inventory Capacity 22 | . 6 6 8 8 16 16 22 22 22 22 22 22 22 22 22 22 10 4 Average Capacity 18 | . 6 6 6 8 13 16 20 22 22 22 22 22 22 22 22 16 5 4 Most Carried 22 | . 6 6 7 8 16 16 22 22 22 22 22 22 22 22 22 15 8 3 Average Carried 17 | . 6 5 6 7 12 15 18 21 21 21 21 21 20 19 20 11 5 2 Final Capacity 22 | 6 6 6 8 8 16 16 22 22 22 22 22 22 22 22 22 10 4 4 Final Carried 22 | 6 6 6 7 8 16 16 22 22 22 22 22 22 17 22 15 8 3 2 Class Distribution -------------------- 25% | Mutant 22% | Botlord-Mutant 20% | Bothacker-Mutant 15% | Scavenger-Mutant 4% | Scavenger-Gunner 3% | Hauler-Tank 3% | Scavenger-Tank Dominant Class ---------------- Mutant | -10/Materials Scavenger-Mutant | -10/Mines Scavenger-Mutant | -10/Exiles Mutant | -9/Mines Mutant | -8/Materials Mutant | -8/Garrison Scavenger-Gunner | -7/Factory Scavenger-Mutant | -7/Garrison Scavenger-Mutant | -7/Factory Bothacker-Mutant | -7/Garrison Bothacker-Mutant | -6/Factory Bothacker-Mutant | -6/Garrison Botlord-Mutant | -6/Factory Bothacker-Mutant | -6/Garrison Botlord-Mutant | -5/Factory Botlord-Mutant | -5/Waste Mutant | -5/Factory Mutant | -5/Extension Resources | -11 -10 -10 -10 -9 -8 -8 -7 -7 -7 -7 -6 -6 -6 -6 -5 -5 -5 -5 ----------- Run | Scr Mat Min Exi Min Mat Gar Fac Gar Fac Gar Fac Gar Fac Gar Fac Was Fac Ext Matter Collected 6896 | 187 12 228 10 57 475 301 612 302 152 648 158 603 1053 1049 854 . 28 167 Remotely . | . . . . . . . . . . . . . . . . . . . Salvage Created 12544 | . 116 267 . 177 1202 673 1732 1646 429 860 58 647 1598 817 2295 . 27 . Parts 520 | . 8 22 . 7 65 31 63 52 16 33 2 26 96 34 65 . . . Haulers Intercepted 11 | . 1 . . . 2 . 4 . 1 . . . 1 . 2 . . . Recyclers Shooed 6 | . . 1 . 1 . . 2 . . . . . . . 2 . . . Parts Field Recycled . | . . . . . . . . . . . . . . . . . . . Retrieved Matter . | . . . . . . . . . . . . . . . . . . . Parts Self-Destructed . | . . . . . . . . . . . . . . . . . . . Prevented . | . . . . . . . . . . . . . . . . . . . Kills | -11 -10 -10 -10 -9 -8 -8 -7 -7 -7 -7 -6 -6 -6 -6 -5 -5 -5 -5 ------- Run | Scr Mat Min Exi Min Mat Gar Fac Gar Fac Gar Fac Gar Fac Gar Fac Was Fac Ext Combat Hostiles Destroyed 205 | . 3 8 . 2 20 19 20 26 7 20 1 10 23 17 29 . . . Melee 4 | . . . . . . . . . 3 1 . . . . . . . . Guns 110 | . 3 8 . 2 11 8 15 14 1 3 . 4 21 14 6 . . . Cannons 44 | . . . . . . . 4 10 2 15 1 6 1 . 5 . . . AOE 32 | . . . . . 7 8 1 . . . . . . 1 15 . . . Classes Destroyed 16 | . 3 3 . . 3 1 3 1 . . . . 2 . . . . . Worker 21 | . . 1 . . 2 . 2 . 1 . . . 3 . 11 . 1 . Builder 8 | . . . . . . . . . . . . . 7 . 1 . . . Tunneler 2 | . . . . . . . 1 . . . . . . . 1 . . . Hauler 11 | . 1 . . . 2 . 4 . 1 . . . 1 . 2 . . . Recycler 14 | . . 1 . 1 1 . 6 . . . . . . . 5 . . . Operator 5 | . 1 . . . 3 . . . 1 . . . . . . . . . Watcher 5 | . . . . . 1 . 2 . . . . 1 1 . . . . . Swarmer 53 | . 3 6 . . 4 7 3 6 . . . 5 9 9 1 . . . Grunt 91 | . . 2 . 2 11 5 12 9 5 11 1 1 6 5 21 . . . Brawler 4 | . . . . . . . 1 . . 1 . . 2 . . . . . Duelist 7 | . . . . . . . . 3 . . . . . 1 3 . . . Protector 1 | . . . . . . . . . . . . . 1 . . . . . Sentry 31 | . . . . . 5 2 2 7 1 7 . 3 2 2 . . . . Specialist 1 | . . . . . . 1 . . . . . . . . . . . . Hunter 11 | . . . . . 1 4 . . . 1 . . 2 1 2 . . . Programmer 11 | . . . . . . . 2 1 1 . . 1 4 . 2 . . . Best Kill Streak 9 | . 5 3 . 2 7 8 6 3 2 8 1 3 7 4 9 . 1 . Combat Bots Only 8 | . 3 3 . 2 6 8 4 3 2 8 1 3 3 4 8 . . . Max Kills in Single Turn 6 | . 1 1 . 1 4 2 2 2 1 1 1 1 3 1 6 . 1 . Gunslinging 1 | . . . . . . 1 . . . . . . . . . . . . Exploded 3 | . . . . . 3 2 1 . . . . . . 1 3 . . . Melee 1 | . . . . . . . . . 1 1 . . . . . . . . Uniques/NPCs Destroyed . | . . . . . . . . . . . . . . . . . . . Combat | -11 -10 -10 -10 -9 -8 -8 -7 -7 -7 -7 -6 -6 -6 -6 -5 -5 -5 -5 -------- Run | Scr Mat Min Exi Min Mat Gar Fac Gar Fac Gar Fac Gar Fac Gar Fac Was Fac Ext Damage Taken 18096 | . 144 823 . 94 1035 1500 1481 1336 569 1677 101 1704 2095 2135 2325 159 676 242 Core 2190 | . 9 148 . 25 47 87 183 55 56 164 8 139 76 184 399 84 364 162 Absorbed by Shields 1744 | . . . . . . . . 159 . 853 . 661 . 43 28 . . . Core Remaining (%) 57 | 100 . . . 27 . 75 . . . 34 . . . 52 . . . . Volleys Fired 780 | . 10 38 . 7 79 53 86 62 26 52 14 62 93 85 101 7 . 5 Largest 3 | . 2 2 . 2 2 2 3 3 3 3 2 2 3 2 2 1 . 1 Hottest 240 | . 40 60 . 68 121 100 210 225 240 240 180 180 151 115 173 40 . 15 Shots Fired 1392 | . 20 70 . 13 121 82 189 140 44 116 18 102 185 134 146 7 . 5 Gun 901 | . 20 70 . 13 119 73 135 66 18 10 . 40 155 120 57 . . 5 Cannon 365 | . . . . . . . 54 74 26 102 9 45 10 . 45 . . . Launcher 32 | . . . . . 2 9 . . . . . . 4 4 13 . . . Special 94 | . . . . . . . . . . 4 9 17 16 10 31 7 . . Kinetic 687 | . 20 64 . 7 48 10 109 . . 73 1 30 155 113 52 . . 5 Thermal 393 | . . 6 . 6 25 . 68 140 38 39 8 45 . 7 11 . . . Explosive 24 | . . . . . 2 9 . . . . . . . . 13 . . . Electromagnetic 194 | . . . . . 46 63 12 . 6 . . 10 14 4 39 . . . Robot Hit Streak 20 | . 4 8 . 5 18 20 16 17 13 11 10 12 15 10 12 7 . 9 Robot Miss Streak 14 | . 1 5 . 1 5 2 5 3 3 14 4 5 6 7 3 . . 3 Penetration Max 2 | . . . . . 1 . 1 . . . . 1 2 . 1 . . . Secondary Targets 18 | . 3 . . 1 . 5 2 . . . . 2 4 1 . . . . Max Gunslinging Chain 1 | . 1 . . 1 . 1 1 . . . . 1 1 1 . . . . Shots Hit Robots 977 | . 14 35 . 10 92 69 116 121 40 96 10 74 110 82 98 7 1 2 Core Hits 551 | . 6 17 . 5 50 35 55 74 17 74 4 21 58 42 91 . 1 1 Critical Hits 19 | . . . . . 2 3 4 1 1 1 . 3 2 . 2 . . . Critical Kills 6 | . . . . . 1 . 1 . . 1 . . 1 . 2 . . . Critical Parts Destroyed 9 | . . . . . . 3 2 1 1 . . 2 . . . . . . Melee Attacks 57 | . . . . . . . 1 23 12 7 . 13 . . . . 1 . Impact . | . . . . . . . . . . . . . . . . . . . Slashing 56 | . . . . . . . 1 23 12 7 . 13 . . . . . . Piercing 1 | . . . . . . . . . . . . . . . . . 1 . Sneak Attacks 3 | . . . . . . . . . 2 . . . . . . . 1 . Combat Hostiles . | . . . . . . . . . . . . . . . . . . . Follow-up Attacks . | . . . . . . . . . . . . . . . . . . . Damage Inflicted 29873 | . 171 282 . 139 2365 2423 3598 3926 1343 2131 206 2452 3275 1988 5406 . 82 86 Guns 13810 | . 171 282 . 139 1875 1182 2210 1288 372 164 . 816 2654 1426 1145 . . 86 Cannons 6434 | . . . . . . . 880 1078 483 1896 206 734 207 . 950 . . . Explosions 6526 | . . . . . 490 1241 508 . . . . . 414 562 3311 . . . Melee 3103 | . . . . . . . . 1560 488 71 . 902 . . . . 82 . Ramming . | . . . . . . . . . . . . . . . . . . . Kinetic 10278 | . 171 261 . 98 716 150 1743 . . 1327 42 689 2654 1261 1080 . . 86 Thermal 7239 | . . 21 . 41 537 253 1115 2366 709 733 164 734 49 280 237 . . . Explosive 5014 | . . . . . 243 988 508 . . . . . . . 3275 . . . Electromagnetic 4239 | . . . . . 869 1032 232 . 146 . . 127 572 447 814 . . . Impact . | . . . . . . . . . . . . . . . . . . . Slashing 3021 | . . . . . . . . 1560 488 71 . 902 . . . . . . Piercing 82 | . . . . . . . . . . . . . . . . . 82 . Highest Corruption 29 | . . . . . . . 4 5 5 5 . 4 7 9 3 27 29 29 Average Corruption 6 | . . . . . . . 1 4 5 5 . 3 5 8 2 13 27 29 Corruption Purged . | . . . . . . . . . . . . . . . . . . . Effects 298 | . . . . . . . 10 47 20 26 . 31 45 54 10 14 19 22 Message Errors 64 | . . . . . . . 2 11 1 7 . 8 14 10 2 2 6 1 Matter Fused 51 | . . . . . . . 1 9 3 8 . 5 5 13 1 1 3 2 Heat Flow Errors 38 | . . . . . . . . 3 5 2 . 8 4 6 2 3 2 3 Energy Discharges 29 | . . . . . . . 2 6 2 1 . 6 4 1 1 2 2 2 Parts Rejected 4 | . . . . . . . . . 1 . . . . 2 . 1 . . Data Loss (minor) 24 | . . . . . . . 1 6 1 2 . 1 5 3 1 1 1 2 Data Loss (major) 7 | . . . . . . . . 2 1 2 . . . 1 . . . 1 Misfires 10 | . . . . . . . . 1 1 . . . 5 3 . . . . Misdirections 17 | . . . . . . . . . . . . . . . . 3 5 9 Targeting Errors 46 | . . . . . . . 4 5 5 3 . 3 7 13 3 1 . 2 Weapon Failures 8 | . . . . . . . . 4 . 1 . . 1 2 . . . . Overload Shots . | . . . . . . . . . . . . . . . . . . . Overflow Damage 681 | . . . . . 9 86 144 67 21 18 3 148 1 37 147 . . . Projectiles 131 | . . . . . . . 40 15 21 18 3 28 . . 6 . . . Explosions 378 | . . . . . 9 86 104 . . . . . 1 37 141 . . . Melee 172 | . . . . . . . . 52 . . . 120 . . . . . . Knockbacks 18 | . . . . . . . . . . 17 1 . . . . . . . Impact . | . . . . . . . . . . . . . . . . . . . Kinetic 18 | . . . . . . . . . . 17 1 . . . . . . . Secondary . | . . . . . . . . . . . . . . . . . . . Self-Inflicted Damage 578 | . . . . . 51 117 . . . . . . 93 161 156 . . . Shots 20 | . . . . . 3 4 . . . . . . 4 5 4 . . . Rammed . | . . . . . . . . . . . . . . . . . . . Targets Rammed . | . . . . . . . . . . . . . . . . . . . Kicked . | . . . . . . . . . . . . . . . . . . . Crushed . | . . . . . . . . . . . . . . . . . . . Highest Temperature 411 | . . 76 . 140 120 207 239 374 355 389 255 268 387 317 411 225 214 253 Average Temperature 94 | . . 19 . 64 35 46 73 124 109 121 75 93 102 110 109 104 124 108 Received Heat Transfer 4327 | . 24 168 . 30 423 279 423 296 210 672 27 260 483 285 621 . 45 81 Effects 29 | . . . . . . . 1 . 5 4 3 . 8 1 7 . . . Shutdowns 3 | . . . . . . . . . . . . . 1 . 2 . . . Energy Bleed 11 | . . . . . . . 1 . 2 2 1 . 3 1 1 . . . Interference 14 | . . . . . . . . . 3 2 2 . 3 . 4 . . . Short Circuit 1 | . . . . . . . . . . . . . 1 . . . . . Siege Activations . | . . . . . . . . . . . . . . . . . . . Robots Corrupted 11 | . . . . . 2 3 . . 1 . . . 1 2 2 . . . Combat Hostiles 10 | . . . . . 2 3 . . . . . . 1 2 2 . . . Parts Fried 40 | . . . . . 7 12 1 . 2 . . . 6 3 9 . . . Impact Corruptions . | . . . . . . . . . . . . . . . . . . . Robots Melted 5 | . . . . . . . . 2 1 1 . . . . 1 . . . Combat Hostiles 5 | . . . . . . . . 2 1 1 . . . . 1 . . . Parts Melted 25 | . . . . . 2 . 3 9 2 7 . 1 1 . . . . . Heat Transferred 12302 | . . 50 . 100 1040 174 1606 4279 1460 1398 211 1050 100 434 400 . . . Parts Sabotaged . | . . . . . . . . . . . . . . . . . . . Parts Stolen . | . . . . . . . . . . . . . . . . . . . Parts Stripped . | . . . . . . . . . . . . . . . . . . . Power Chain Reactions 12 | . . . . . 4 5 . . . . . . 1 1 1 . . . Missiles Intercepted . | . . . . . . . . . . . . . . . . . . . Alert | -11 -10 -10 -10 -9 -8 -8 -7 -7 -7 -7 -6 -6 -6 -6 -5 -5 -5 -5 ------- Run | Scr Mat Min Exi Min Mat Gar Fac Gar Fac Gar Fac Gar Fac Gar Fac Was Fac Ext Peak Influence 1426 | . 127 124 . 45 345 631 413 842 591 993 520 949 1224 1426 1106 1419 1025 500 Average Influence 567 | . 49 58 . 15 141 404 180 540 504 751 473 795 644 1220 855 870 996 474 Maximum Alert Level 4 | . . . . . 1 2 2 3 2 3 2 3 4 4 4 4 3 2 Low Security (%) 21 | . 100 100 . 100 71 19 64 4 . . . . . . . . . . Level 1 10 | . . . . . 28 10 32 10 15 6 17 4 1 . . 11 . . Level 2 30 | . . . . . . 69 2 59 84 31 82 18 67 . . 26 . 100 Level 3 30 | . . . . . . . . 25 . 61 . 76 25 28 97 30 100 . Level 4 6 | . . . . . . . . . . . . . 5 71 1 31 . . Level 5 . | . . . . . . . . . . . . . . . . . . . High Security . | . . . . . . . . . . . . . . . . . . . Max Security . | . . . . . . . . . . . . . . . . . . . Squads Dispatched 42 | . 3 . . . 3 . 7 . 3 . 3 . 15 . 6 . 1 1 Investigation 11 | . 1 . . . 2 . 3 . . . 1 . 3 . . . . 1 Extermination 9 | . . . . . . . 2 . 2 . . . 4 . 1 . . . Reinforcement 14 | . 2 . . . 1 . 2 . 1 . . . 5 . 2 . 1 . Assault 6 | . . . . . . . . . . . 2 . 1 . 3 . . . Garrison 2 | . . . . . . . . . . . . . 2 . . . . . Intercept . | . . . . . . . . . . . . . . . . . . . Construction Impeded 3 | . . . . . . . . . . . . . 2 . 1 . . . Haulers Reinforced 4 | . . . . . . . 1 . . . . . 3 . . . . . Stealth | -11 -10 -10 -10 -9 -8 -8 -7 -7 -7 -7 -6 -6 -6 -6 -5 -5 -5 -5 --------- Run | Scr Mat Min Exi Min Mat Gar Fac Gar Fac Gar Fac Gar Fac Gar Fac Was Fac Ext Distress Signals 9 | . . . . . 2 . 1 . . . . . 1 . 4 . 1 . Communications Jammed . | . . . . . . . . . . . . . . . . . . . Distress Signals . | . . . . . . . . . . . . . . . . . . . Times Spotted 419 | . 8 10 . 2 41 23 28 27 12 26 8 36 57 42 74 6 12 7 Peak Tracking Total 10 | . 4 3 . 2 7 5 5 4 4 9 3 7 7 7 10 3 9 4 Tactical Retreats 22 | . . . . . 3 3 2 3 . 1 . 1 1 5 1 . 2 . Traps | -11 -10 -10 -10 -9 -8 -8 -7 -7 -7 -7 -6 -6 -6 -6 -5 -5 -5 -5 ------- Run | Scr Mat Min Exi Min Mat Gar Fac Gar Fac Gar Fac Gar Fac Gar Fac Was Fac Ext Traps Triggered 39 | . . . . 1 . 3 2 9 1 6 2 7 1 3 2 . 1 1 Indirectly . | . . . . . . . . . . . . . . . . . . . Trap Hack Attempts . | . . . . . . . . . . . . . . . . . . . Triggered . | . . . . . . . . . . . . . . . . . . . Disarmed . | . . . . . . . . . . . . . . . . . . . Reprogrammed . | . . . . . . . . . . . . . . . . . . . Reused . | . . . . . . . . . . . . . . . . . . . Traps Extracted . | . . . . . . . . . . . . . . . . . . . Installed . | . . . . . . . . . . . . . . . . . . . Triggered 1 | . . . . . 1 . . . . . . . . . . . . . Machines | -11 -10 -10 -10 -9 -8 -8 -7 -7 -7 -7 -6 -6 -6 -6 -5 -5 -5 -5 ---------- Run | Scr Mat Min Exi Min Mat Gar Fac Gar Fac Gar Fac Gar Fac Gar Fac Was Fac Ext Machines Disabled 53 | . . . . . 4 3 12 3 1 5 . 5 9 4 7 . . . Max in Single Turn 5 | . . . . . 2 1 5 1 1 1 . 1 1 1 2 . . . Garrison Relay 17 | . . . . . . 3 . 3 . 3 . 5 . 3 . . . . Machines Sabotaged . | . . . . . . . . . . . . . . . . . . . Garrisons Compromised . | . . . . . . . . . . . . . . . . . . . Overloaded Fab Kills . | . . . . . . . . . . . . . . . . . . . Fab Network Shutdowns . | . . . . . . . . . . . . . . . . . . . Hacking | -11 -10 -10 -10 -9 -8 -8 -7 -7 -7 -7 -6 -6 -6 -6 -5 -5 -5 -5 --------- Run | Scr Mat Min Exi Min Mat Gar Fac Gar Fac Gar Fac Gar Fac Gar Fac Was Fac Ext Machines Accessed 49 | . 2 . 1 1 10 . 13 . 1 . 4 . 9 . 3 . 2 3 Terminals 23 | . 1 . . . 8 . 5 . . . 2 . 3 . 1 . . 3 Fabricators 8 | . . . . . . . 3 . . . . . 2 . 1 . 2 . Repair Stations 6 | . . . . . 1 . 2 . . . 1 . 2 . . . . . Recycling Units 1 | . 1 . . . . . . . . . . . . . . . . . Scanalyzers 4 | . . . . . . . 2 . . . . . 1 . 1 . . . Garrison Access 5 | . . . . . 1 . 1 . 1 . 1 . 1 . . . . . Total Hacks 138 | . 2 . 5 1 30 . 40 . 1 . 12 . 22 . 10 . 4 11 Successful 76 | . 2 . 5 1 13 . 27 . 1 . 4 . 9 . 8 . 2 4 Failed 62 | . . . . . 17 . 13 . . . 8 . 13 . 2 . 2 7 Catastrophic 12 | . . . . . 6 . 3 . . . . . 1 . . . 1 1 Database Lockouts . | . . . . . . . . . . . . . . . . . . . Manual 52 | . 2 . . . 20 . 8 . . . 7 . 10 . 2 . . 3 Terminals 67 | . 1 . . . 24 . 15 . . . 9 . 5 . 2 . . 11 Fabricators 22 | . . . . . . . 10 . . . . . 6 . 2 . 4 . Repair Stations 16 | . . . . . 5 . 5 . . . 1 . 5 . . . . . Recycling Units 1 | . 1 . . . . . . . . . . . . . . . . . Scanalyzers 20 | . . . . . . . 9 . . . . . 5 . 6 . . . Garrison Access 6 | . . . . . 1 . 1 . 1 . 2 . 1 . . . . . Terminal Hacks 26 | . 1 . 5 1 6 . 8 . . . 2 . 1 . . . . 2 Record 5 | . . . 5 . . . . . . . . . . . . . . . Part Schematic 1 | . . . . . 1 . . . . . . . . . . . . . Open Door 3 | . . . . 1 . . . . . . . . . . . . . 2 Branch Access Points 3 | . 1 . . . 1 . 1 . . . . . . . . . . . Machine Index 1 | . . . . . 1 . . . . . . . . . . . . . Terminal Index 1 | . . . . . . . 1 . . . . . . . . . . . Alert Level 4 | . . . . . 1 . 2 . . . 1 . . . . . . . Unreport Threat 7 | . . . . . 2 . 3 . . . 1 . 1 . . . . . Hauler Manifests 1 | . . . . . . . 1 . . . . . . . . . . . Fabricator Hacks 8 | . . . . . . . 3 . . . . . 2 . 1 . 2 . Load Schematic 3 | . . . . . . . 1 . . . . . . . . . 2 . Build 5 | . . . . . . . 2 . . . . . 2 . 1 . . . Repair Station Hacks 6 | . . . . . 3 . 3 . . . . . . . . . . . Scan Component 4 | . . . . . 2 . 2 . . . . . . . . . . . Repair 2 | . . . . . 1 . 1 . . . . . . . . . . . Recycling Unit Hacks . | . . . . . . . . . . . . . . . . . . . Scanalyzer 17 | . . . . . . . 8 . . . . . 3 . 6 . . . Insert Component 8 | . . . . . . . 4 . . . . . 1 . 3 . . . Analyze 9 | . . . . . . . 4 . . . . . 2 . 3 . . . Garrison Access Hacks 6 | . . . . . 1 . 1 . 1 . 2 . 1 . . . . . Unlock Access 5 | . . . . . 1 . 1 . 1 . 1 . 1 . . . . . Coupler Status 1 | . . . . . . . . . . . 1 . . . . . . . Unauthorized Hacks 13 | . 1 . . . 3 . 4 . . . . . 2 . 1 . . 2 Terminals 9 | . . . . . 3 . 3 . . . . . . . 1 . . 2 Botnet 8 | . . . . . 3 . 3 . . . . . . . 1 . . 1 Disrupt 1 | . . . . . . . . . . . . . . . . . . 1 Fabricators 3 | . . . . . . . 1 . . . . . 2 . . . . . Prioritize 1 | . . . . . . . . . . . . . 1 . . . . . Download 2 | . . . . . . . 1 . . . . . 1 . . . . . Repair Stations . | . . . . . . . . . . . . . . . . . . . Recycling Units 1 | . 1 . . . . . . . . . . . . . . . . . Tunnel 1 | . 1 . . . . . . . . . . . . . . . . . Scanalyzers . | . . . . . . . . . . . . . . . . . . . Garrison Access . | . . . . . . . . . . . . . . . . . . . Data Cores Recovered . | . . . . . . . . . . . . . . . . . . . Used . | . . . . . . . . . . . . . . . . . . . Hacking Detections 42 | . 1 . . . 9 . 12 . 1 . 4 . 9 . 2 . 2 2 Full Trace Events 7 | . . . . . 2 . 2 . . . . . 2 . . . . 1 Feedback Events 2 | . . . . . . . 1 . . . . . 1 . . . . . Corruption 2 | . . . . . . . 1 . . . . . 1 . . . . . Feedback Blocked . | . . . . . . . . . . . . . . . . . . . Robot Schematics Acquired . | . . . . . . . . . . . . . . . . . . . Robots Built 1 | . . . . . . . . . . . . . . . 1 . . . Matter 504 | . . . . . . . 219 . . . . . . . 285 . . . Time 268 | . . . . . . . 116 . . . . . . . 152 . . . Total Robot Build Rating 5 | . . . . . . . . . . . . . . . 5 . . . Part Schematics Acquired 9 | . . . . . 1 . 4 . . . . . 1 . 3 . . . Parts Built 4 | . . . . . . . 1 . . . . . 3 . . . . . Matter 658 | . . . . . . . 212 . . . . . 446 . . . . . Time 276 | . . . . . . . 53 . . . . . 223 . . . . . Total Part Build Rating 26 | . . . . . . . 6 . . . . . 20 . . . . . Parts Repaired 2 | . . . . . 1 . 1 . . . . . . . . . . . Time 63 | . . . . . 44 . 19 . . . . . . . . . . . Parts Recycled . | . . . . . . . . . . . . . . . . . . . Recycled Matter . | . . . . . . . . . . . . . . . . . . . Retrieved Matter . | . . . . . . . . . . . . . . . . . . . Retrieved Components . | . . . . . . . . . . . . . . . . . . . Parts Scanalyzed 7 | . . . . . . . 3 . . . . . 1 . 3 . . . Part Schematics Acquired 6 | . . . . . . . 3 . . . . . . . 3 . . . Parts Damaged 1 | . . . . . . . . . . . . . . . 1 . . . Bothacking | -11 -10 -10 -10 -9 -8 -8 -7 -7 -7 -7 -6 -6 -6 -6 -5 -5 -5 -5 ------------ Run | Scr Mat Min Exi Min Mat Gar Fac Gar Fac Gar Fac Gar Fac Gar Fac Was Fac Ext Used RIF Installer 5 | . . . . . . 1 . 1 . 1 . 1 . 1 . . . . Threat Obfuscator 1 | . . . . . . . . . . . . . . 1 . . . . Zone Cloak 1 | . . . . . . . . . . . . 1 . . . . . . Structural Interface 1 | . . . . . . . . 1 . . . . . . . . . . Autooverride 1 | . . . . . . . . . . 1 . . . . . . . . Robots Hacked 73 | . . . . . . . . . . 4 6 13 14 10 22 4 . . Non-combat 10 | . . . . . . . . . . . 2 . 2 . 6 . . . Combat 63 | . . . . . . . . . . 4 4 13 12 10 16 4 . . Autooverrided 10 | . . . . . . . . . . . 2 2 1 1 4 . . . Robot Hacks Applied 71 | . . . . . . . . . . 4 4 13 14 9 20 7 . . parse_system 5 | . . . . . . . . . . . . 2 . . 1 2 . . no_distress 2 | . . . . . . . . . . . . . 1 . 1 . . . drop_inventory 4 | . . . . . . . . . . . 1 . 1 . 2 . . . ignore_targets 5 | . . . . . . . . . . . . . . . . 5 . . overload_power 1 | . . . . . . . . . . . . . . . 1 . . . disable_weapons 3 | . . . . . . . . . . 1 . 1 . 1 . . . . go_dormant 1 | . . . . . . . . . . . . . . 1 . . . . overwrite_iff 12 | . . . . . . . . . . . . 2 1 3 6 . . . streamctrl_high 1 | . . . . . . . . . . . . . . 1 . . . . formatsys_low 1 | . . . . . . . . . . . 1 . . . . . . . formatsys_high 36 | . . . . . . . . . . 3 2 8 11 3 9 . . . Relay Couplers Released 72 | . . . . . . 13 . 13 . 14 . 20 . 12 . . . . Machine Destruction 72 | . . . . . . 13 . 13 . 14 . 20 . 12 . . . . Attached 41 | . . . . . . . . 1 . 3 3 10 7 6 7 . 4 . Robots Rewired 2 | . . . . . . . . . . . . . . . . . . 2 Allies Hacked 1 | . . . . . . . . . . . . 1 . . . . . . Hacks Repelled . | . . . . . . . . . . . . . . . . . . . Allies | -11 -10 -10 -10 -9 -8 -8 -7 -7 -7 -7 -6 -6 -6 -6 -5 -5 -5 -5 -------- Run | Scr Mat Min Exi Min Mat Gar Fac Gar Fac Gar Fac Gar Fac Gar Fac Was Fac Ext Total Allies 70 | . . . . 3 . . . . . 3 5 12 13 8 19 1 . 6 Largest Group 6 | . . . . 3 3 . . . . 3 5 6 5 3 5 1 . 4 Highest-Rated Group 174 | . . . . 40 40 . . . . 80 132 174 130 87 137 31 . 107 Highest-Rated Ally 60 | . . . . 16 16 . . . . 32 35 35 41 37 60 31 . 31 Total Orders 2 | . . . . . . . . . . . 2 . . . . . . . GUARD 2 | . . . . . . . . . . . 2 . . . . . . . Ally Attacks 327 | . . . . . 21 . . . . 9 15 67 102 17 51 28 . 17 Total Damage 7811 | . . . . . 265 . . . . 369 475 1794 2380 578 1053 502 . 395 Kills 62 | . . . . . 4 . . . . 3 5 14 20 3 10 . . 3 Allies Corrupted . | . . . . . . . . . . . . . . . . . . . Allies Melted . | . . . . . . . . . . . . . . . . . . . Intel | -11 -10 -10 -10 -9 -8 -8 -7 -7 -7 -7 -6 -6 -6 -6 -5 -5 -5 -5 ------- Run | Scr Mat Min Exi Min Mat Gar Fac Gar Fac Gar Fac Gar Fac Gar Fac Was Fac Ext Robot Analysis Total . | . . . . . . . . . . . . . . . . . . . Derelict Logs Recovered 1 | . . 1 . . . . . . . . . . . . . . . . Drone Launches . | . . . . . . . . . . . . . . . . . . . Drone Recoveries . | . . . . . . . . . . . . . . . . . . . Exploration | -11 -10 -10 -10 -9 -8 -8 -7 -7 -7 -7 -6 -6 -6 -6 -5 -5 -5 -5 ------------- Run | Scr Mat Min Exi Min Mat Gar Fac Gar Fac Gar Fac Gar Fac Gar Fac Was Fac Ext Turns Passed 15026 | . 110 528 378 134 1461 1115 1630 1365 595 1123 382 1848 1521 1147 1024 222 246 197 Spaces Moved 9312 | 1 65 395 314 80 726 580 856 816 405 749 252 1352 1021 589 439 149 359 164 Core 451 | . . 8 . . . . . . . . . . . . . . 279 164 Treads 1391 | . . . . . 655 580 156 . . . . . . . . . . . Legs 2157 | 1 65 131 314 41 12 . 544 . . . . 53 . 354 430 149 63 . Wheels 5296 | . . 256 . 39 59 . 156 816 405 749 252 1299 1021 235 9 . . . Hover . | . . . . . . . . . . . . . . . . . . . Flight 17 | . . . . . . . . . . . . . . . . . 17 . Fastest Speed 40 | 120 120 80 120 110 110 160 110 110 110 115 105 105 106 110 130 120 40 50 Average Speed 124 | 120 120 101 120 120 155 162 151 114 110 115 114 112 109 134 162 139 63 81 Slowest Speed 270 | 120 120 150 120 150 210 180 180 120 115 115 130 150 120 150 270 240 120 100 Overloaded Moves . | . . . . . . . . . . . . . . . . . . . Propulsion Burnouts . | . . . . . . . . . . . . . . . . . . . Robots Hopped . | . . . . . . . . . . . . . . . . . . . Cave-ins Triggered . | . . . . . . . . . . . . . . . . . . . Exploration Rate (%) 47 | 2 24 74 72 30 54 86 23 87 12 95 8 96 32 65 19 89 11 21 Regions Visited 18 Branch Regions 4 Pre-discovered Areas 3 | . 1 1 1 . . . . . . . . . . . . . . . Known Exits Taken 6 | . 1 . . . 1 . 1 . 1 . 1 . 1 . . . . . Unknown Exits Taken 5 | 1 . 1 1 1 . . . . . . . . . . . . 1 . Scrap Searched 1 | . . 1 . . . . . . . . . . . . . . . . Spaces Dug 18 | . . . . . . . 1 . . . . . . . 17 . . . Terrain Destroyed 368 | . . . . . 45 62 31 . . . 3 3 39 35 150 . . . Melee 1 | . . . . . . . 1 . . . . . . . . . . . Projectile 75 | . . . . . . . 10 . . . 3 3 39 16 4 . . . AOE 292 | . . . . . 45 62 20 . . . . . . 19 146 . . . Actions | -11 -10 -10 -10 -9 -8 -8 -7 -7 -7 -7 -6 -6 -6 -6 -5 -5 -5 -5 --------- Run | Scr Mat Min Exi Min Mat Gar Fac Gar Fac Gar Fac Gar Fac Gar Fac Was Fac Ext Total 11442 | . 78 463 316 106 936 675 1017 1079 494 903 332 1575 1265 820 622 161 377 223 Wait 435 | . 3 4 . 8 67 2 27 46 17 17 47 10 111 58 7 . 3 8 Move 9296 | . 64 394 313 79 725 578 855 815 405 748 252 1351 1020 588 439 148 358 164 Hop . | . . . . . . . . . . . . . . . . . . . Pick Up 173 | . . 7 1 2 18 11 17 20 5 20 2 29 7 20 12 . 2 . Fast Attach 110 | . . 9 . 4 14 2 9 11 8 2 6 14 5 11 11 1 2 1 Attach 92 | . . 3 . . 6 4 7 8 2 6 2 10 5 13 15 4 6 1 Detach 19 | . . . . . 2 . . . 1 . 2 4 2 5 2 . 1 . Swap 92 | . 1 . 1 . 6 10 5 5 4 5 1 13 14 7 20 . . . Drop 183 | . . 8 1 6 19 11 10 27 14 13 6 34 7 10 12 1 4 . Fire 780 | . 10 38 . 7 79 53 86 62 26 52 14 62 93 85 101 7 . 5 Melee 57 | . . . . . . . 1 23 12 7 . 13 . . . . 1 . Ram . | . . . . . . . . . . . . . . . . . . . Kick . | . . . . . . . . . . . . . . . . . . . Crush . | . . . . . . . . . . . . . . . . . . . Escape Stasis 168 | . . . . . . 4 . 62 . 32 . 34 . 21 . . . 15 Rewire 37 | . . . . . . . . . . 1 . 1 1 2 3 . . 29 Trap . | . . . . . . . . . . . . . . . . . . . Miscellaneous . | . . . . . . . . . . . . . . . . . . . Route ------- -11/Scrapyard -10/Materials (discovered 2 exits: *Min x2) -10/Mines (discovered 2 exits: [*Mat] / *Exi) -10/Exiles -9/Mines -8/Materials (discovered 3 exits: *Fac / Sto / Gar) -8/Garrison (discovered 3 exits: *Fac x3) -7/Factory (discovered 4 exits: *Fac / Low x2 / Gar) -7/Garrison (discovered 3 exits: *Fac x3) -7/Factory -7/Garrison (discovered 3 exits: *Fac x3) -6/Factory (discovered 2 exits: [*Low] / Gar) -6/Garrison (discovered 3 exits: *Fac x3) -6/Factory (discovered 3 exits: *Fac / [*Low] / Gar) -6/Garrison (discovered 2 exits: *Fac x2) -5/Factory -5/Waste -5/Factory -5/Extension History --------- Turn | Location | Event 1 | -11/Scrapyard | Discovered new exit (range 0) 1 | -11/Scrapyard | Entered Materials 17 | -10/Materials | Identified exit to Mines 111 | -10/Materials | Entered Mines 111 | -10/Mines | A weapon hastily lodged in a ceiling crevice suddenly fell to the ground 112 | -10/Mines | Assembled infested the area 133 | -10/Mines | Met 8R-AWN 168 | -10/Mines | Lost 3 parts (1p2n) 234 | -10/Mines | Received a Rocket Launcher from a helpful Derelict 247 | -10/Mines | Learned location of Storage (-8) 435 | -10/Mines | Discovered new exit (range 9) 460 | -10/Mines | Core integrity fell below 50% 634 | -10/Mines | Discovered new exit (range 5) 639 | -10/Mines | Entered Exiles 669 | -10/Exiles | Welcomed by 8R-AWN 689 | -10/Exiles | Met EX-HEX 737 | -10/Exiles | Met EX-DEC 743 | -10/Exiles | Learned location of Zion (-6) 766 | -10/Exiles | Build established: Scavenger-Mutant 771 | -10/Exiles | Met EX-BIN 865 | -10/Exiles | Visited The Gauntlet 1005 | -10/Exiles | Discovered new exit (range 10) 1017 | -10/Exiles | Entered Mines 1041 | -9/Mines | Met a Derelict who couldn't figure out how to use a Trap Extractor 1136 | -9/Mines | Discovered new exit (range 7) 1147 | -9/Mines | Assisted by bots powering up and referring to "LRC-V3" 1151 | -9/Mines | Entered Materials 1151 | -8/Materials | Accompanied by 3 allies 1151 | -8/Materials | Evolved 4 slots: Propulsion x1, Utility x3 1377 | -8/Materials | Build established: Mutant 1506 | -8/Materials | Identified exit to Storage 1907 | -8/Materials | Discovered new exit (range 6) 2256 | -8/Materials | Repaired Med. Treads 2431 | -8/Materials | Identified exit to Garrison 2612 | -8/Materials | Entered Garrison 2620 | -8/Garrison | Installed Relay Interface Framework 2694 | -8/Garrison | Triggered checkpoint 2758 | -8/Garrison | Garrison Relay disabled 2902 | -8/Garrison | Triggered checkpoint 2912 | -8/Garrison | Triggered checkpoint 2918 | -8/Garrison | Triggered checkpoint 2968 | -8/Garrison | Destroyed 8 combat bots 3146 | -8/Garrison | Discovered new exit (range 9) 3179 | -8/Garrison | Identified exit to Factory 3341 | -8/Garrison | Discovered exit to Factory (range 15) 3386 | -8/Garrison | Triggered checkpoint 3424 | -8/Garrison | Garrison Relay disabled 3554 | -8/Garrison | Discovered exit to Factory (range 10) 3604 | -8/Garrison | Triggered checkpoint 3639 | -8/Garrison | Garrison Relay disabled 3727 | -8/Garrison | Entered Factory 3727 | -7/Factory | Evolved 2 slots: Utility x1, Weapon x1 3773 | -7/Factory | Repaired Carbon-fiber Leg? 4202 | -7/Factory | Fabricated Lrn. Proton Cannon? 4202 | -7/Factory | Identified exit to Lower Caves 4288 | -7/Factory | Lost 3 parts (1n1u1w) 4456 | -7/Factory | Discovered new exit (range 15) 4514 | -7/Factory | Build established: Scavenger-Gunner 4904 | -7/Factory | Build established: Scavenger-Mutant 5295 | -7/Factory | Identified exit to Garrison 5357 | -7/Factory | Entered Garrison 5416 | -7/Garrison | Triggered checkpoint 5492 | -7/Garrison | Garrison Relay disabled 5521 | -7/Garrison | Build established: Hauler-Tank 5547 | -7/Garrison | Triggered checkpoint 5645 | -7/Garrison | Lost 4 parts (1p1n1u1w) 5953 | -7/Garrison | Discovered new exit (range 10) 6006 | -7/Garrison | Triggered checkpoint 6140 | -7/Garrison | Triggered checkpoint 6214 | -7/Garrison | Triggered checkpoint 6264 | -7/Garrison | Garrison Relay disabled 6298 | -7/Garrison | Discovered new exit (range 10) 6365 | -7/Garrison | Build established: Scavenger-Mutant 6482 | -7/Garrison | Discovered new exit (range 14) 6503 | -7/Garrison | Expanded RIF knowledge: Structural Interface 6562 | -7/Garrison | Triggered checkpoint 6632 | -7/Garrison | Triggered checkpoint 6662 | -7/Garrison | Garrison Relay disabled 6722 | -7/Garrison | Entered Factory 7317 | -7/Factory | Identified exit to Garrison 7317 | -7/Factory | Entered Garrison 7380 | -7/Garrison | Triggered checkpoint 7401 | -7/Garrison | Core integrity fell below 50% 7541 | -7/Garrison | Lost 6 parts (1p2u3w) 7568 | -7/Garrison | Destroyed 8 combat bots 7686 | -7/Garrison | Triggered checkpoint 7744 | -7/Garrison | Triggered checkpoint 7780 | -7/Garrison | Discovered new exit (range 10) 7844 | -7/Garrison | Garrison Relay disabled 7889 | -7/Garrison | Triggered checkpoint 7906 | -7/Garrison | Triggered checkpoint 7956 | -7/Garrison | Discovered new exit (range 10) 7980 | -7/Garrison | Triggered checkpoint 8008 | -7/Garrison | Garrison Relay disabled 8032 | -7/Garrison | Build established: Bothacker-Mutant 8299 | -7/Garrison | Garrison Relay disabled 8350 | -7/Garrison | Discovered new exit (range 15) 8435 | -7/Garrison | Expanded RIF knowledge: Autooverride 8440 | -7/Garrison | Entered Factory 8440 | -6/Factory | Accompanied by 3 allies 8440 | -6/Factory | Evolved 2 slots: Utility x2 8551 | -6/Factory | Discovered new exit (range 14) 8790 | -6/Factory | First assault squad dispatched 8808 | -6/Factory | Identified exit to Garrison 8822 | -6/Factory | Entered Garrison 8822 | -6/Garrison | Accompanied by 4 allies 8980 | -6/Garrison | Spotted B-75 Beast 9003 | -6/Garrison | Allies destroyed B-75 Beast 9020 | -6/Garrison | Garrison Relay disabled 9079 | -6/Garrison | Garrison Relay disabled 9084 | -6/Garrison | Triggered checkpoint 9118 | -6/Garrison | Triggered checkpoint 9144 | -6/Garrison | P-60 Hacker assimilated allied Guardian 5c 9196 | -6/Garrison | Triggered checkpoint 9242 | -6/Garrison | Triggered checkpoint 9251 | -6/Garrison | Garrison Relay disabled 9318 | -6/Garrison | Discovered new exit (range 12) 9372 | -6/Garrison | Triggered checkpoint 9394 | -6/Garrison | Triggered checkpoint 9453 | -6/Garrison | Discovered new exit (range 9) 9500 | -6/Garrison | Triggered checkpoint 9516 | -6/Garrison | Garrison Relay disabled 9590 | -6/Garrison | Triggered checkpoint 9591 | -6/Garrison | Garrison Relay disabled 9686 | -6/Garrison | Spotted B-75 Beast 9705 | -6/Garrison | Allies destroyed B-75 Beast 9833 | -6/Garrison | Discovered new exit (range 13) 9854 | -6/Garrison | Expanded RIF knowledge: Zone Cloak 10168 | -6/Garrison | Build established: Botlord-Mutant 10670 | -6/Garrison | Entered Factory 10923 | -6/Factory | Fabricated Centrium Wheel? 11020 | -6/Factory | First assault squad dispatched 11083 | -6/Factory | Discovered new exit (range 3) 11442 | -6/Factory | Discovered new exit (range 4) 11847 | -6/Factory | Fabricated Imp. Core Analyzer? 12053 | -6/Factory | Garrison activated, responded to threat 12174 | -6/Factory | Identified exit to Garrison 12191 | -6/Factory | Entered Garrison 12191 | -6/Garrison | Accompanied by 1 ally 12348 | -6/Garrison | Triggered checkpoint 12370 | -6/Garrison | Build established: Bothacker-Mutant 12392 | -6/Garrison | Garrison Relay disabled 12596 | -6/Garrison | Triggered checkpoint 12631 | -6/Garrison | Triggered checkpoint 12790 | -6/Garrison | Triggered checkpoint 12898 | -6/Garrison | Lost 3 parts (1p2w) 12940 | -6/Garrison | Triggered checkpoint 12950 | -6/Garrison | Garrison Relay disabled 13017 | -6/Garrison | Discovered new exit (range 10) 13040 | -6/Garrison | Expanded RIF knowledge: Threat Obfuscation 13116 | -6/Garrison | Triggered checkpoint 13166 | -6/Garrison | Triggered checkpoint 13205 | -6/Garrison | Garrison Relay disabled 13244 | -6/Garrison | Build established: Botlord-Mutant 13317 | -6/Garrison | Discovered new exit (range 10) 13338 | -6/Garrison | Entered Factory 13338 | -5/Factory | Accompanied by 3 allies 13338 | -5/Factory | Evolved 2 slots: Power x1, Utility x1 13545 | -5/Factory | Destroyed 8 combat bots 13638 | -5/Factory | First assault squad dispatched 13870 | -5/Factory | Fabricated A-15 Conveyor? 14105 | -5/Factory | Lost 4 parts (2p1n1w) 14239 | -5/Factory | Lost 8 parts (2n2u4w) 14362 | -5/Factory | Sucked down chute 14362 | -5/Factory | Entered Waste 14363 | -5/Waste | Met a frightened Derelict 14377 | -5/Waste | EMP discharged 14379 | -5/Waste | Lost 3 parts (1p1u1w) 14383 | -5/Waste | Spotted C-40 Crusher 14402 | -5/Waste | Spotted C-40 Crusher 14419 | -5/Waste | Spotted C-40 Crusher 14421 | -5/Waste | Spotted C-40 Crusher 14421 | -5/Waste | Spotted C-40 Crusher 14462 | -5/Waste | Crushed by Compactor (1 part destroyed, 1 dropped) 14472 | -5/Waste | Spotted C-40 Crusher 14477 | -5/Waste | EMP discharged 14477 | -5/Waste | System corruption reached 10% 14484 | -5/Waste | Crushed by Compactor (1 part destroyed, 1 dropped) 14488 | -5/Waste | Crushed by Compactor (1 part destroyed, 2 dropped) 14491 | -5/Waste | Crushed by Compactor (1 part destroyed, 1 dropped) 14522 | -5/Waste | Lost 4 parts (1p1n2u) 14563 | -5/Waste | Discovered new exit (range 16) 14577 | -5/Waste | EMP discharged 14584 | -5/Waste | Entered Factory 14646 | -5/Factory | Core integrity fell below 50% 14822 | -5/Factory | Core integrity fell below 20% 14825 | -5/Factory | Discovered new exit (range 12) 14826 | -5/Factory | Build established: Mutant 14830 | -5/Factory | Entered Extension 14850 | -5/Extension | Lost 6 parts (3n3u) 14886 | -5/Extension | Rescued a captive Derelict 14887 | -5/Extension | Rescued a captive Derelict 14926 | -5/Extension | Rescued a captive Derelict 14927 | -5/Extension | Rescued a captive Derelict 15027 | -5/Extension | Destroyed by S-27 Virus with Autogun Last Messages --------------- 14979_ Field strength at 28. 14980_ Stasis field depleted. 14980_ Field strength at 22. 14981_ Field strength at 16. 14982_ System corrupted: Component data lost. 14982_ Field strength at 10. 14983_ Field strength at 4. 14984_ Stasis field depleted. 14990_ QD-SND(l) triggered Stasis Trap. 14990_ A bubble of rippling energy engulfs the area. 14990_ Field strength at 83. 14991_ Field strength at 66. 14992_ Field strength at 49. 14994_ Field strength at 15. 14997_ System corrupted: Component data lost. 15012_ System corrupted: Heat flow error (+293). 15023_ 74-4Z0(g) destroyed. 15025_ QD-SND(l) destroyed. 15026_ 1G-6MP(g) destroyed. 15026_ Carbon-fiber Leg destroyed. Map ----- +----------------------------------------------------+ | | | | | | | | | | | | | | | | | | | ?????????????????????????????????????????????????? | | ?????????????????????????????????????????????????? | | ?????????????????????????????????????????????????? | | ?????????????????????????????????????????????????? | | ?????????????????????????????????????????????????? | | ?????????????????????????????????????????????????? | | ???####??????????????????????????????????????????? | | ???#T"#??????????????????????????????????????????? | | #### "#####??????????????????????????????????????? | | #?????#######################??????????? | | #?????# ???????????? | | #?????# ????????????? | | ^ #?????? s* ????????????? | | #???????? s%[ ?????????????? | | #?????????? s% ???????????????? | | ########+######???????? s% """""""??????????????? | | ????# #?????????#@ """"""" "?????????? | | ????# ########### ????????? | | ????# + ????????? | | ????# ##########################?????????? | | ????###########??????????????????????????????????? | | ?????????????????????????????????????????????????? | | ?????????????????????????????????????????????????? | | ?????????????????????????????????????????????????? | | ?????????????????????????????????????????????????? | | ?????????????????????????????????????????????????? | | ?????????????????????????????????????????????????? | | ?????????????????????????????????????????????????? | | ?????????????????????????????????????????????????? | | ?????????????????????????????????????????????????? | | ?????????????????????????????????????????????????? | | ?????????????????????????????????????????????????? | | ?????????????????????????????????????????????????? | | ?????????????????????????????????????????????????? | | ?????????????????????????????????????????????????? | | ?????????????????????????????????????????????????? | | ?????????????????????????????????????????????????? | | ?????????????????????????????????????????????????? | | ?????????????????????????????????????????????????? | | ?????????????????????????????????????????????????? | | ?????????????????????????????????????????????????? | +----------------------------------------------------+ Best States ------------- Heat Dissipation 71 Energy Generation 34 Energy Capacity 335 Matter Stores 300 Matter Capacity 300 Sight Range 22 Terrain Scan Density 10 Armor Coverage 825 Resistance: KI 30 Resistance: TH 15 Resistance: EM 20 Weapon Cycling 20 Evasion (%) 55 Core Analysis 8 Recoil Reduction 3 Kinecelleration 30 Offensive Hacking 10 Defensive Hacking 10 Item Schematics ----------------- Hacking Suite | -8/Materials | Hacked Lrn. Proton Cannon | -7/Factory | Downloaded Cmb. Airjet | -7/Factory | Scanalyzed Imp. Medium Armor Plating | -7/Factory | Scanalyzed Hvy. EM Shotgun | -7/Factory | Scanalyzed Centrium Wheel | -6/Factory | Downloaded Lrg. Storage Unit | -5/Factory | Scanalyzed Imp. Heavy Machine Gun | -5/Factory | Scanalyzed Imp. Remote Force Field | -5/Factory | Scanalyzed Robot Schematics ------------------ None Fabricated ------------ Lrn. Proton Cannon | x1 | -7/Factory | Preloaded Centrium Wheel | x2 | -6/Factory | Preloaded Imp. Core Analyzer | x1 | -6/Factory | Preloaded A-15 Conveyor | x1 | -5/Factory | Preloaded Alien Tech Used ----------------- None Achievements -------------- Error 47 Challenges ------------ None Game ------ Seed MinesnifferPrecisionWarhead Manual? 0 Play Time 02:42:04 Cumulative 321.7 hours Start 2020.06.22 @ 14:00:25 End 2020.06.22 @ 16:45:05 Sessions 1 Manual Loads 0 Difficulty Rogue Special Mode None Game No. 348 Rogue 348 Adventurer 0 Explorer 0 Win Type - Total 29 Types 17/3/2/1/2/1/3 Lore% 93 Gallery% 88 Achievement% 78 Wizard Run 0 Options --------- ASCII 0 Keyboard 0 Movement Arrows Keybinds 0 Fullscreen 2 Font 18/SmallcapsGlow Map View 76x50 Tactical HUD 1 Map Filters NONE Filters NONE Steam 1 RUN: ea9232b7-97df-41e8-aaf1-75bb44306729